[Event "European Women Blitz-ch 2024"]
[Site "Monaco"]
[Date "2025.01.10"]
[Round "12.7"]
[White "Narva, Mai"]
[Black "Stefanova, Antoaneta"]
[Result "1/2-1/2"]
[Annotator "TA"]
[ECO "C73"]
[WhiteElo "2398"]
[BlackElo "2418"]
[PlyCount "97"]
[EventDate "2025.01.06"]
[EventType "swiss"]
[EventCountry "MNC"]
[SourceTitle "playchess.com"]
[Source "ChessBase"]
[SourceQuality "1"]
[TimeControl "180+2"]

{[%evp 18,97,35,37,27,32,26,6,25,23,26,27,33,14,6,10,38,26,17,13,14,0,0,1,2,0,0,5,0,0,0,0,2,10,11,0,0,0,0,0,0,0,2,2,48,11,39,31,68,0,52,52,53,14,22,0,0,0,19,0,69,0,0,0,2,0,0,0,0,0,0,0,0,0,0,0,0,0,0,0,0,0]} 1. e4 {[%emt 0:00:02]} e5 {[%emt 0:00:00]} 2. Nf3 {[%emt 0:00:02]} Nc6 {[%emt 0:00:01]} 3. Bb5 {[%emt 0:00:01]} a6 {[%emt 0:00:01]} 4. Ba4 {[%emt 0:00:02]} d6 {[%emt 0:00:01]} 5. O-O {[%emt 0:00:05]} Bd7 {[%emt 0:00:03]} 6. c4 {[%emt 0:00:06]} Nf6 {[%emt 0:00:04]} 7. Nc3 {[%emt 0:00:02]} Be7 {[%emt 0:00:01]} 8. Bxc6 {[%emt 0:00:04]} bxc6 {[%emt 0:00:03]} 9. d4 {[%emt 0:00:03]} exd4 {[%emt 0:00:04]} 10. Nxd4 {[%emt 0:00:03]} O-O {[%emt 0:00:07]} 11. b3 {[%emt 0:00:15]} c5 {[%emt 0:00:14]} 12. Nf3 {[%emt 0:00:06]} a5 {[%emt 0:00:09]} 13. e5 {[%emt 0:00:12]} Ng4 $1 {[%emt 0:00:29]} 14. Bf4 {[%emt 0:00:51][%cal Re5d6]} Bc6 {[%emt 0:00:07][%cal Oa5a4]} 15. exd6 {[%emt 0:00:29]} (15. Re1 {is more complex.} a4 16. h3 dxe5 17. Bg3) 15... Bxd6 {[%emt 0:00:02]} 16. Bxd6 {[%emt 0:00:06]} Qxd6 {[%emt 0:00:19]} 17. Qxd6 {[%emt 0:00:05]} cxd6 {[%emt 0:00:01]} 18. Rad1 {[%emt 0:00:11]} Rfd8 {[%emt 0:00:03]} 19. Ng5 {[%emt 0:00:11]} a4 {[%emt 0:00:09]} 20. Nge4 {[%emt 0:00:08]} axb3 {[%emt 0:00:26]} 21. axb3 {[%emt 0:00:02]} Rab8 {[%emt 0:00:12]} 22. Nxd6 {[%emt 0:00:15]} Rxb3 {[%emt 0:00:25]} 23. Nce4 {[%emt 0:00:02]} Bxe4 {[%emt 0:00:32]} 24. Nxe4 {[%emt 0:00:01]} Rxd1 {[%emt 0:00:03]} 25. Rxd1 $11 {[%emt 0:00:02][%cal Rd1d8][%mdl 4096] Endgame KRN-KRN} g6 {[%emt 0:00:05]} 26. h3 {[%emt 0:00:12]} Ne5 {[%emt 0:00:01]} 27. Rd5 {[%emt 0:00:07]} Nxc4 {[%emt 0:00:03]} 28. Rxc5 {[%emt 0:00:01]} Nb2 {[%emt 0:00:07]} 29. Rc7 {[%emt 0:00:07]} h6 {[%emt 0:00:04]} 30. Nd6 {[%emt 0:00:01]} Nd3 {[%emt 0:00:02]} (30... f6 $11) 31. Nxf7 {[%emt 0:00:04]} (31. Rxf7 $5 Rb1+ 32. Kh2 $11) 31... Rb1+ {[%emt 0:00:01]} 32. Kh2 {[%emt 0:00:01]} Nxf2 {[%emt 0:00:01]} 33. Ne5 {[%emt 0:00:02]} (33. Nxh6+ $14 Kh8 34. Nf7+ Kg7 35. Nd6+ Kg8 36. Rc8+ Kg7 37. Rc7+) 33... Rh1+ {[%emt 0:00:03]} (33... g5 $11) 34. Kg3 $14 {[%emt 0:00:01]} Ne4+ {[%emt 0:00:01]} 35. Kf4 {[%emt 0:00:01]} Nf6 {[%emt 0:00:01]} 36. Rc8+ {[%emt 0:00:02]} Kg7 {[%emt 0:00:01]} 37. Rc7+ {[%emt 0:00:01]} Kg8 {[%emt 0:00:00] aiming for ...Nd5+.} 38. Rc6 {[%emt 0:00:05]} Nh5+ {[%emt 0:00:04]} ({Better is} 38... Rf1+ $11 39. Kg3 g5) 39. Ke4 {[%emt 0:00:03]} ({White should try} 39. Kg4 $14) 39... Re1+ $11 {[%emt 0:00:01]} 40. Kd4 {[%emt 0:00:01]} Nf4 {[%emt 0:00:03]} 41. Nxg6 {[%emt 0:00:05]} Nxg2 {[%emt 0:00:02]} 42. Ne5 {[%emt 0:00:01]} Nf4 {[%emt 0:00:01] Against Rg6+} 43. Rxh6 {[%emt 0:00:02]} Rh1 {[%emt 0:00:04]} 44. h4 {[%emt 0:00:02]} Kg7 {[%emt 0:00:01]} 45. Ra6 {[%emt 0:00:02]} Rxh4 {[%emt 0:00:02]} 46. Nf3 {[%emt 0:00:02]} Rh3 {[%emt 0:00:02]} 47. Ne5 {[%emt 0:00:02]} Ne2+ {[%emt 0:00:03]} 48. Kd5 {[%emt 0:00:01]} Nf4+ {[%emt 0:00:01]} 49. Kd4 {[%emt 0:00:01]} 1/2-1/2

[Event "European Women Blitz-ch 2024"]
[Site "Monaco"]
[Date "2025.01.10"]
[Round "12.8"]
[White "Gvetadze, Sofio"]
[Black "Khademalsharieh, Sarasadat"]
[Result "0-1"]
[Annotator "TA"]
[ECO "B10"]
[WhiteElo "2298"]
[BlackElo "2458"]
[PlyCount "150"]
[EventDate "2025.01.06"]
[EventType "swiss"]
[EventCountry "MNC"]
[SourceTitle "playchess.com"]
[Source "ChessBase"]
[SourceQuality "1"]
[TimeControl "180+2"]

{[%evp 16,150,-8,-28,-11,-21,0,-26,-20,-30,-25,-47,-26,-43,-52,-47,-38,-97,-106,-106,-114,-102,-110,-235,-238,-489,-228,-191,-165,-169,-164,-270,-172,-303,-222,-230,-174,-197,-202,-176,-59,-64,-70,-106,-95,-243,0,0,0,-1250,-160,-168,-138,-158,0,0,22,-198,0,0,0,0,0,-8,0,-39,-39,-44,-44,-41,0,0,0,0,0,-44,16,0,0,-3,0,-34,0,-8,0,0,0,0,0,-24,-25,-25,-25,-25,-32,-39,-39,-62,-52,-63,-29,-31,-26,-39,-39,-970,-956,-956,-945,-1676,-1713,-12136,-5022,-12136,-5987,-11932,-7339,-2580,0,-29946,-5597,-29966,-29967,-29966,-4918,-12101,-6015,-29968,-29969,-29977,-29974,-29970,-29969,-29964,-29945,-29982,-29983]} 1. Nf3 {[%emt 0:00:01]} d5 {[%emt 0:00:01]} 2. g3 {[%emt 0:00:02]} Nd7 {[%emt 0:00:02]} 3. Bg2 {[%emt 0:00:02]} e5 {[%emt 0:00:01]} 4. d3 {[%emt 0:00:02]} Ngf6 {[%emt 0:00:04]} 5. O-O {[%emt 0:00:02]} c6 {[%emt 0:00:02]} 6. Nbd2 {[%emt 0:00:02]} Bd6 {[%emt 0:00:05]} 7. e4 {[%emt 0:00:02]} O-O {[%emt 0:00:02]} 8. Re1 {[%emt 0:00:02]} Re8 {[%emt 0:00:01]} 9. c3 {[%emt 0:00:02]} Nc5 {[%emt 0:00:13]} 10. Qc2 {[%emt 0:00:04]} Bc7 {[%emt 0:00:06]} 11. b4 {[%emt 0:00:10]} dxe4 $1 {[%emt 0:00:03]} 12. bxc5 {[%emt 0:00:07]} exf3 {[%emt 0:00:02]} 13. Nxf3 {[%emt 0:00:10]} Bf5 {[%emt 0:00:02]} 14. Rd1 {[%emt 0:00:06]} Qd7 {[%emt 0:00:17]} 15. Nh4 {[%emt 0:00:10]} Bg4 {[%emt 0:00:05]} 16. f3 {[%emt 0:00:06]} (16. Re1 $15) 16... Be6 $17 {[%emt 0:00:11] Black is more active.} 17. d4 {[%emt 0:00:06]} exd4 {[%emt 0:00:01]} 18. cxd4 {[%emt 0:00:02]} Nd5 {[%emt 0:00:02]} 19. Rb1 {[%emt 0:00:13]} (19. f4 $17 Bh3 20. Nf3) 19... Bd8 $19 {[%emt 0:00:02]} 20. Qb2 $2 {[%emt 0:00:14]} (20. Bf1 {was the only chance.}) 20... Bxh4 {[%emt 0:00:02]} (20... g5 $142 21. g4 gxh4) 21. gxh4 {[%emt 0:00:01]} Rab8 {[%emt 0:00:20]} 22. Bd2 {[%emt 0:00:27]} h6 {[%emt 0:00:26]} 23. Qa3 {[%emt 0:00:09]} (23. Re1 $142) 23... a6 {[%emt 0:00:07]} 24. Be1 {[%emt 0:00:03]} (24. Re1 $142) 24... Bh3 {[%emt 0:00:04]} 25. Bg3 {[%emt 0:00:22]} Rbd8 {[%emt 0:00:31]} 26. Re1 {[%emt 0:00:06]} Bxg2 {[%emt 0:00:04]} 27. Kxg2 {[%emt 0:00:01]} Ne7 {[%emt 0:00:21]} (27... Qf5 $1 $19 {[%cal Od5e3]} 28. Qb3 (28. Rxe8+ $2 Rxe8 29. Qb2 Qd3 $19) 28... Re3 29. Rxe3 Nxe3+ 30. Kf2 Nc2 (30... Rxd4 31. Kxe3 Qxc5 32. Ke2 $16)) 28. Qb2 {[%emt 0:00:24]} Nf5 $1 {[%emt 0:00:05]} (28... Qxd4 $2 29. Qxd4 Rxd4 30. Rxb7 $18) 29. Rxe8+ {[%emt 0:00:11]} Rxe8 {[%emt 0:00:01]} 30. Qxb7 {[%emt 0:00:17]} (30. Bf2 $17) 30... Re2+ $2 {[%emt 0:00:16]} (30... Qxd4 31. Qxc6 Re6 (31... Nxh4+ $2 32. Bxh4 Re2+ 33. Kh1 $18) (31... Re2+ 32. Kh3 $17) 32. Qb7) (30... Qd5 $1 $19 31. Qb3 Qxd4 (31... Re2+ 32. Kf1 $11)) 31. Kf1 $11 {[%emt 0:00:06]} Qe6 {[%emt 0:00:04]} (31... Qxd4 $2 32. Qc8+ $18 (32. Kxe2 Qe3+ 33. Kf1 Nxg3+ 34. Kg2 Nh5 $18)) 32. Rb2 $2 {[%emt 0:00:11][%mdl 8192]} (32. Qb3 $11) 32... Re3 $2 {[%emt 0:00:10]} (32... Nxd4 $19 {is more deadly. ( -> ...Qh3+)} 33. Qc8+ Qxc8 34. Rxe2 Nxe2 35. Kxe2 Qe6+ 36. Kd3 Qxa2) 33. Qb8+ $17 {[%emt 0:00:02]} Kh7 {[%emt 0:00:01][%mdl 1024] Black has strong compensation.} 34. Qf4 {[%emt 0:00:02] [#]} Qc4+ $2 {[%emt 0:00:04]} ({Black should try} 34... Ne7 $1 $17 {[%cal Re7d5] And now ...Nd5 would win.} 35. Bf2 Qh3+ 36. Kg1 Rxf3 37. Qe4+ Ng6 (37... Nf5 38. Rb3 $11)) 35. Kg2 $11 {[%emt 0:00:01]} Qe6 {[%emt 0:00:08]} (35... Qxd4 $2 36. Qxf5+ g6 37. Qxf7+ Qg7 38. Rb7 (38. Qxg7+ Kxg7 39. Rb7+ Kf6 $18) 38... Re2+ 39. Kh3 Qxf7 40. Rxf7+ $18) 36. Rf2 $2 {[%emt 0:00:01] [#]} (36. h5 $11) 36... Rd3 $2 {[%emt 0:00:02]} (36... Re1 $1 $19 37. h3 Qg6) 37. Qe4 {[%emt 0:00:02]} Rxd4 {[%emt 0:00:02]} 38. Qxe6 {[%emt 0:00:01]} fxe6 {[%emt 0:00:01][%mdl 4096] Endgame KRB-KRN} 39. Rb2 {[%emt 0:00:00]} Rd5 {[%emt 0:00:02][%cal Bd4d5,Bd5c5,Bc5c2,Bc2a2][%mdl 32]} (39... Nxh4+ 40. Bxh4 Rxh4 41. Rb6) 40. Rb6 {[%emt 0:00:02]} Rxc5 {[%emt 0:00:01]} 41. Rxa6 {[%emt 0:00:01]} Rc2+ {[%emt 0:00:01]} 42. Kh3 {[%emt 0:00:01]} c5 {[%emt 0:00:01]} 43. Rxe6 {[%emt 0:00:01]} Rxa2 {[%emt 0:00:02]} 44. Rc6 {[%emt 0:00:01]} Rc2 {[%emt 0:00:01]} 45. Rc7 {[%emt 0:00:01]} c4 {[%emt 0:00:02]} (45... h5 $15) 46. Be5 {[%emt 0:00:02]} h5 {[%emt 0:00:01]} 47. Rc6 {[%emt 0:00:05]} Rc1 {[%emt 0:00:03]} 48. Bf4 {[%emt 0:00:03]} Rf1 {[%emt 0:00:02]} 49. Kg2 {[%emt 0:00:01]} Ra1 {[%emt 0:00:03]} (49... Nxh4+ $2 50. Kxf1 g5 51. Bxg5 Nxf3 52. Bf4 $18) 50. Rxc4 {[%emt 0:00:01]} Nxh4+ {[%emt 0:00:01]} 51. Kg3 {[%emt 0:00:01]} Nf5+ {[%emt 0:00:01]} 52. Kh3 {[%emt 0:00:01]} Ra3 {[%emt 0:00:02]} 53. Kg2 {[%emt 0:00:07]} Nh4+ {[%emt 0:00:01]} 54. Kg3 {[%emt 0:00:04]} Nxf3 {[%emt 0:00:02]} (54... Rxf3+ $2 {is the wrong capture.} 55. Kxh4 Ra3 56. Kxh5 $18) 55. Kf2 {[%emt 0:00:08]} Nh4 {[%emt 0:00:04]} 56. Be5 {[%emt 0:00:00]} Ra2+ {[%emt 0:00:03]} 57. Ke3 {[%emt 0:00:00]} Nf5+ {[%emt 0:00:02]} 58. Kf4 {[%emt 0:00:00]} Rf2+ {[%emt 0:00:02]} 59. Kg5 {[%emt 0:00:01]} Ne3 {[%emt 0:00:05]} 60. Rc7 $2 {[%emt 0:00:02][%mdl 8192]} (60. Re4 $15 Rf5+ 61. Kh4) 60... Rf5+ $19 {[%emt 0:00:00]} 61. Kh4 {[%emt 0:00:02]} Rxe5 {[%emt 0:00:01] KRN-KR} 62. Kg3 {[%emt 0:00:01]} Ra5 {[%emt 0:00:02]} 63. Kf3 {[%emt 0:00:02]} Nd5 {[%emt 0:00:02]} 64. Rd7 {[%emt 0:00:01]} Nf6 {[%emt 0:00:01]} 65. Rb7 {[%emt 0:00:01]} Ra3+ {[%emt 0:00:00]} 66. Kf4 {[%emt 0:00:01]} Ra5 $2 {[%emt 0:00:02]} (66... Kh6 $19 67. h4 Rh3) 67. h4 $2 {[%emt 0:00:02][%mdl 8192]} (67. Kf3 $11 Ra3+ 68. Kg2) 67... Kg6 {[%emt 0:00:01]} (67... Ra4+ $142 68. Kg3 Ne4+ 69. Kf3 Nd6 70. Rb8 g6 (70... Rxh4 $2 71. Rb6 $19) 71. Kg2 Nf5 (71... Rxh4 $2 72. Rf8 $19) 72. Re8 Rg4+ (72... Rxh4 $2 73. Re2 $19) (72... Nxh4+ $2 73. Kh3 $19) 73. Kh1 Rxh4+ (73... Nxh4 $2 74. Kh2 $19) 74. Kg2 Rg4+ 75. Kh2 Kh6 76. Re1 Kg5 77. Kh1 Kh4 78. Kh2 g5 79. Re2 Rf4 80. Kg2 g4 81. Kg1 g3 82. Kh1 Kg4 83. Kg1 Kh3 84. Re6 Nd4 85. Re5 h4 (85... Nf3+ {is a self mate.} 86. Kf1 Nxe5+ 87. Ke2 g2 88. Ke3 Rc4 89. Ke2 g1=Q 90. Kd2 Qc1+ 91. Ke2 Rc2#) 86. Re1 Rf2 (86... Nf3+ 87. Kf1 Nd4+ 88. Kg1 Rf2 89. Re3 Nf3+ 90. Rxf3 Rxf3 91. Kh1 Rf1#) 87. Re3 Nf3+ 88. Rxf3 Rxf3 89. Kh1 Rf1#) 68. Rb6 {[%emt 0:00:01]} Ra4+ {[%emt 0:00:01]} 69. Kg3 {[%emt 0:00:01]} Kf5 {[%emt 0:00:01]} (69... Rg4+ $142 70. Kh3 Kf5 71. Rb5+ Kf4 (71... Kg6 $2 72. Re5 $19) 72. Rb4+ Ke5 73. Rb8 Nd5 74. Kh2 Rxh4+ 75. Kg3 Rg4+ 76. Kf3 Rf4+ 77. Kg3 Rd4 78. Rh8 Rd3+ 79. Kf2 g6 80. Ra8 Kf5 81. Ra1 h4 82. Ra7 Kg4 83. Ra6 Nf4 84. Ra1 h3 85. Rh1 Ra3 86. Rg1+ Kh4 87. Rb1 h2 88. Rh1 Kh3 89. Rd1 g5 90. Rd8 Ra2+ (90... h1=B $2 91. Rh8+ Kg4 92. Rxh1 $19) 91. Ke3 Re2+ (91... h1=Q 92. Rh8+ Kg2 93. Rxh1 Re2+ 94. Kd4 Kxh1 95. Kc5 g4 96. Kd4 g3 97. Kc4 g2 98. Kc5 g1=Q+ 99. Kc6 Rc2+ 100. Kd7 Qa7+ 101. Kd8 Ne6+ 102. Ke8 Rc8#) 92. Kd4 Rd2+ (92... h1=B $2 93. Rh8+ Kg2 94. Kc3 $19) 93. Kc5 Rxd8 (93... h1=Q $2 94. Rh8+ Kg2 95. Rxh1 $19) 94. Kc6 h1=Q+ (94... h1=B+ $2 95. Kb6 $19) 95. Kc5 Qc1+ 96. Kb6 Rb8+ 97. Ka7 Qc7+ 98. Ka6 Qb6#) 70. Rb7 {[%emt 0:00:02]} Ne4+ {[%emt 0:00:02]} 71. Kh3 {[%emt 0:00:01]} Ra3+ {[%emt 0:00:01]} 72. Kh2 {[%emt 0:00:01]} Rg3 {[%emt 0:00:01]} 73. Rf7+ {[%emt 0:00:01]} Ke6 {[%emt 0:00:01]} 74. Rf4 {[%emt 0:00:02]} Rg4 {[%emt 0:00:02]} 75. Rf1 {[%emt 0:00:01]} Rxh4+ {[%emt 0:00:01]} 0-1

[Event "European Women Blitz-ch 2024"]
[Site "Monaco"]
[Date "2025.01.10"]
[Round "12.9"]
[White "Sliwicka, Alicja"]
[Black "Osmak, Yuliia"]
[Result "1/2-1/2"]
[Annotator "TA"]
[ECO "B00"]
[WhiteElo "2344"]
[BlackElo "2463"]
[PlyCount "204"]
[EventDate "2025.01.06"]
[EventType "swiss"]
[EventCountry "MNC"]
[SourceTitle "playchess.com"]
[Source "ChessBase"]
[SourceQuality "1"]
[TimeControl "180+2"]

{[%evp 110,204,-8,-8,-8,-8,-8,-8,-8,-8,-8,-8,-8,-8,-8,-8,-8,-8,0,-8,0,-8,0,-8,-8,-8,-8,-8,-8,-8,0,0,0,-8,0,-8,0,-8,0,-8,0,0,0,0,0,0,0,0,0,-3,0,0,0,0,0,0,0,-4,-4,-8,-8,-8,-8,-8,-8,-8,-8,-8,-8,-8,-8,-8,-8,-8,-8,-8,-8,-8,-8,-8,-8,-8,-8,-8,-8,-8,-8,-8,0,-8,0,-8,-8,-8,-8,-8,-8]} 1. e4 {[%emt 0:00:01]} Nc6 {[%emt 0:00:00]} 2. d4 {[%emt 0:00:03]} d5 {[%emt 0:00:01]} 3. e5 {[%emt 0:00:07]} f6 {[%emt 0:00:01]} 4. Bf4 {[%emt 0:00:06]} fxe5 {[%emt 0:00:19]} 5. dxe5 {[%emt 0:00:03]} Bf5 {[%emt 0:00:03]} 6. Bd3 {[%emt 0:00:02]} Bxd3 {[%emt 0:00:03]} 7. Qxd3 {[%emt 0:00:02]} e6 {[%emt 0:00:02]} 8. Ne2 {[%emt 0:00:07]} Qd7 {[%emt 0:00:02]} 9. a3 {[%emt 0:00:21]} O-O-O {[%emt 0:00:03]} 10. b4 {[%emt 0:00:10]} g5 {[%emt 0:00:03]} 11. Bxg5 {[%emt 0:00:17]} Be7 {[%emt 0:00:34]} 12. Bxe7 {[%emt 0:00:06]} Ngxe7 {[%emt 0:00:01]} 13. f4 {[%emt 0:00:02]} Rdg8 {[%emt 0:00:06]} 14. g3 {[%emt 0:00:04]} h5 {[%emt 0:00:01]} 15. Nd2 {[%emt 0:00:13]} h4 {[%emt 0:00:04]} 16. O-O-O {[%emt 0:00:03]} Nf5 {[%emt 0:00:05]} 17. c4 {[%emt 0:00:18]} Nce7 {[%emt 0:00:06]} 18. c5 {[%emt 0:00:13]} Qa4 {[%emt 0:00:09]} 19. Kb2 {[%emt 0:00:08]} a5 {[%emt 0:00:15]} 20. b5 {[%emt 0:00:36]} d4 {[%emt 0:00:23]} 21. Qb3 {[%emt 0:00:09]} Qxb3+ {[%emt 0:00:04]} 22. Nxb3 {[%emt 0:00:02]} Ne3 {[%emt 0:00:11]} 23. Rdg1 {[%emt 0:00:20]} d3 {[%emt 0:00:11]} 24. Ned4 {[%emt 0:00:02]} Rg6 {[%emt 0:00:21]} 25. gxh4 {[%emt 0:00:06]} Rxg1 {[%emt 0:00:19]} 26. Rxg1 {[%emt 0:00:01]} Rxh4 {[%emt 0:00:01]} 27. Kc3 {[%emt 0:00:05]} N3d5+ {[%emt 0:00:10]} 28. Kxd3 {[%emt 0:00:02]} Nxf4+ {[%emt 0:00:01]} 29. Ke3 {[%emt 0:00:04]} Ned5+ {[%emt 0:00:03]} 30. Kf3 {[%emt 0:00:02]} Rh3+ {[%emt 0:00:04]} 31. Kg4 {[%emt 0:00:03]} Rxh2 {[%emt 0:00:02]} 32. c6 {[%emt 0:00:01]} bxc6 {[%emt 0:00:02]} 33. bxc6 {[%emt 0:00:01]} a4 {[%emt 0:00:06]} 34. Nc5 {[%emt 0:00:01]} Rh6 {[%emt 0:00:04]} 35. Kf3 {[%emt 0:00:02]} Rh3+ {[%emt 0:00:03]} 36. Kf2 {[%emt 0:00:01]} Rh2+ {[%emt 0:00:02]} 37. Kg3 {[%emt 0:00:02]} Rh6 {[%emt 0:00:01]} 38. Kf3 {[%emt 0:00:05]} Rh3+ {[%emt 0:00:02]} 39. Kg4 {[%emt 0:00:03]} Rh8 {[%emt 0:00:06]} 40. Re1 {[%emt 0:00:02]} Rh6 {[%emt 0:00:04]} 41. Kf3 {[%emt 0:00:03]} Rh3+ {[%emt 0:00:02]} 42. Kg4 {[%emt 0:00:01]} Rh6 {[%emt 0:00:01]} 43. Nxa4 {[%emt 0:00:02]} Rg6+ {[%emt 0:00:02]} 44. Kf3 {[%emt 0:00:01]} Nd3 {[%emt 0:00:01]} 45. Rh1 {[%emt 0:00:01]} Nxe5+ {[%emt 0:00:02]} 46. Ke4 {[%emt 0:00:02]} Nf7 {[%emt 0:00:01]} 47. Rf1 {[%emt 0:00:02]} Nd6+ {[%emt 0:00:02]} 48. Kd3 {[%emt 0:00:01]} Rg3+ {[%emt 0:00:01]} 49. Kc2 {[%emt 0:00:02]} Ne3+ {[%emt 0:00:01]} 50. Kb2 {[%emt 0:00:04]} Nxf1 {[%emt 0:00:02]} 51. Nxe6 {[%emt 0:00:02]} Re3 {[%emt 0:00:04]} 52. Nd4 {[%emt 0:00:01]} Rd3 {[%emt 0:00:03]} 53. Nc2 {[%emt 0:00:03]} Nc4+ {[%emt 0:00:02]} 54. Ka2 {[%emt 0:00:02]} Rxa3+ {[%emt 0:00:02]} 55. Nxa3 {[%emt 0:00:01]} Ne5 {[%emt 0:00:03]} 56. Kb3 {[%emt 0:00:01]} Nxc6 {[%emt 0:00:02]} 57. Nc5 {[%emt 0:00:01]} Nd2+ {[%emt 0:00:02]} 58. Kc3 {[%emt 0:00:02]} Nf3 {[%emt 0:00:02]} 59. Nc4 {[%emt 0:00:01]} Ne7 {[%emt 0:00:03]} 60. Ne3 {[%emt 0:00:02]} Ne5 {[%emt 0:00:02]} 61. Kd4 {[%emt 0:00:13]} N5c6+ {[%emt 0:00:02]} 62. Kc4 {[%emt 0:00:00]} Na5+ {[%emt 0:00:01]} 63. Kb4 {[%emt 0:00:00]} Nac6+ {[%emt 0:00:02]} 64. Kc4 {[%emt 0:00:00]} Ne5+ {[%emt 0:00:01]} 65. Kd4 {[%emt 0:00:00]} Nf3+ {[%emt 0:00:01]} 66. Kc4 {[%emt 0:00:00]} Nc6 {[%emt 0:00:03]} 67. Nf5 {[%emt 0:00:00]} Nce5+ {[%emt 0:00:01]} 68. Kd5 {[%emt 0:00:00]} Ng6 {[%emt 0:00:02]} 69. Ke4 {[%emt 0:00:00]} Ng5+ {[%emt 0:00:02]} 70. Kd5 {[%emt 0:00:01]} Nf3 {[%emt 0:00:02]} 71. Ke4 {[%emt 0:00:01]} Nd2+ {[%emt 0:00:02]} 72. Kd3 {[%emt 0:00:02]} Nf3 {[%emt 0:00:01]} 73. Ke4 {[%emt 0:00:02]} Ng5+ {[%emt 0:00:02]} 74. Kd5 {[%emt 0:00:00]} Nf4+ {[%emt 0:00:03]} 75. Ke5 {[%emt 0:00:02]} Ne2 {[%emt 0:00:02]} 76. Kd5 {[%emt 0:00:02]} Nf3 {[%emt 0:00:02]} 77. Ne7+ {[%emt 0:00:03]} Kd8 {[%emt 0:00:02]} 78. Nc6+ {[%emt 0:00:01]} Ke8 {[%emt 0:00:02]} 79. Ne6 {[%emt 0:00:03]} Kd7 {[%emt 0:00:03]} 80. Nc5+ {[%emt 0:00:02]} Kc8 {[%emt 0:00:03]} 81. Ne7+ {[%emt 0:00:01]} Kd8 {[%emt 0:00:02]} 82. Nc6+ {[%emt 0:00:02]} Ke8 {[%emt 0:00:00]} 83. Ne6 {[%emt 0:00:01]} Nc3+ {[%emt 0:00:04]} 84. Kc4 {[%emt 0:00:02]} Kd7 {[%emt 0:00:01]} 85. Kxc3 {[%emt 0:00:09]} Kxe6 {[%emt 0:00:02]} 86. Kc4 {[%emt 0:00:02]} Kd6 {[%emt 0:00:02]} 87. Na7 {[%emt 0:00:03]} Ne5+ {[%emt 0:00:02]} 88. Kb4 $1 {[%emt 0:00:04]} c5+ {[%emt 0:00:02]} (88... Kd5 $5) 89. Kc3 {[%emt 0:00:04]} Kd5 {[%emt 0:00:04]} 90. Nc8 {[%emt 0:00:02]} Nd7 {[%emt 0:00:02]} 91. Ne7+ {[%emt 0:00:02]} Kd6 {[%emt 0:00:01]} 92. Nf5+ {[%emt 0:00:02]} Ke5 {[%emt 0:00:02]} 93. Ne3 {[%emt 0:00:02]} Ke4 {[%emt 0:00:02]} 94. Nc4 {[%emt 0:00:03]} Nf6 {[%emt 0:00:03]} 95. Nb6 {[%emt 0:00:05]} Ke5 {[%emt 0:00:02]} 96. Kc4 {[%emt 0:00:02]} Kd6 {[%emt 0:00:01]} 97. Nc8+ {[%emt 0:00:01]} Kc6 {[%emt 0:00:02]} 98. Ne7+ {[%emt 0:00:01]} Kd6 {[%emt 0:00:02]} 99. Nc8+ {[%emt 0:00:01]} Kc6 {[%emt 0:00:02]} 100. Ne7+ {[%emt 0:00:01]} Kd7 {[%emt 0:00:01]} 101. Kxc5 {[%emt 0:00:02]} Kxe7 {[%emt 0:00:01]} 102. Kd4 {[%emt 0:00:11]} Ke6 1/2-1/2

[Event "European Women Blitz-ch 2024"]
[Site "Monaco"]
[Date "2025.01.10"]
[Round "12.10"]
[White "Toncheva, Nadya"]
[Black "Papp, Petra"]
[Result "1/2-1/2"]
[Annotator "TA"]
[ECO "B15"]
[WhiteElo "2313"]
[BlackElo "2235"]
[PlyCount "81"]
[EventDate "2025.01.06"]
[EventType "swiss"]
[EventCountry "MNC"]
[SourceTitle "playchess.com"]
[Source "ChessBase"]
[SourceQuality "1"]
[TimeControl "180+2"]

{[%evp 15,81,16,21,10,14,0,14,0,0,8,8,9,17,0,17,-13,-15,-18,0,-1,0,-5,0,0,0,-7,-7,-13,-10,-13,0,0,-4,-21,0,0,-7,-37,0,0,0,0,0,0,0,0,0,0,0,0,0,0,0,0,8,8,8,8,8,8,8,0,8,0,8,0,11,0]} 1. e4 {[%emt 0:00:02]} c6 {[%emt 0:00:01]} 2. d4 {[%emt 0:00:01]} d5 {[%emt 0:00:00]} 3. Nc3 {[%emt 0:00:01]} dxe4 {[%emt 0:00:01]} 4. Nxe4 {[%emt 0:00:00]} Nf6 {[%emt 0:00:01]} 5. Nxf6+ {[%emt 0:00:01]} exf6 {[%emt 0:00:01]} 6. c3 {[%emt 0:00:01]} Bd6 {[%emt 0:00:02]} 7. Bd3 {[%emt 0:00:02]} O-O {[%emt 0:00:02]} 8. Ne2 {[%emt 0:00:01]} Re8 {[%emt 0:00:02]} 9. O-O {[%emt 0:00:02]} Na6 {[%emt 0:00:01][%cal Bb8a6,Ba6c7,Bc7d5][%mdl 32]} 10. Ng3 {[%emt 0:00:09]} Nc7 {[%emt 0:00:08]} 11. Nf5 {[%emt 0:00:15]} Bxf5 {[%emt 0:00:10]} 12. Bxf5 {[%emt 0:00:01]} g6 {[%emt 0:00:03]} 13. Bd3 {[%emt 0:00:03]} Bf8 {[%emt 0:00:09]} 14. Bf4 {[%emt 0:00:03]} Nd5 {[%emt 0:00:01]} 15. Bg3 {[%emt 0:00:02]} f5 {[%emt 0:00:03]} 16. Qd2 {[%emt 0:00:06] Prevents f4.} Qd7 {[%emt 0:00:12]} 17. Rfe1 {[%emt 0:00:08]} h5 {[%emt 0:00:03]} 18. Be5 {[%emt 0:00:12]} Bg7 {[%emt 0:00:11]} 19. Bxg7 {[%emt 0:00:11]} Kxg7 {[%emt 0:00:02]} 20. h3 {[%emt 0:00:11]} Qd6 {[%emt 0:00:04]} 21. Bf1 {[%emt 0:00:08]} Nf6 {[%emt 0:00:09]} 22. Bd3 {[%emt 0:00:06]} Nd5 {[%emt 0:00:01]} 23. Rxe8 {[%emt 0:00:17]} Rxe8 {[%emt 0:00:01]} 24. Re1 {[%emt 0:00:01]} Re6 {[%emt 0:00:27]} 25. Rxe6 {[%emt 0:00:12]} Qxe6 $11 {[%emt 0:00:01][%mdl 4096] Endgame KQB-KQN} 26. Qe2 {[%emt 0:00:08]} Nf4 {[%emt 0:00:10]} 27. Qxe6 {[%emt 0:00:02]} fxe6 {[%emt 0:00:01] KB-KN} 28. Bc4 {[%emt 0:00:04]} Kf6 {[%emt 0:00:08]} 29. h4 {[%emt 0:00:07]} e5 {[%emt 0:00:04]} 30. g3 {[%emt 0:00:08]} Nd5 {[%emt 0:00:04]} 31. dxe5+ {[%emt 0:00:07]} Kxe5 {[%emt 0:00:01]} 32. Kf1 {[%emt 0:00:03]} f4 {[%emt 0:00:18] ...fxg3 is the strong threat.} 33. Ke2 {[%emt 0:00:02]} fxg3 {[%emt 0:00:31]} 34. fxg3 {[%emt 0:00:01]} Ne7 {[%emt 0:00:10]} 35. Kf3 {[%emt 0:00:07]} Nf5 {[%emt 0:00:06]} 36. Bd3 {[%emt 0:00:12]} b6 {[%emt 0:00:04]} 37. Bc4 {[%emt 0:00:17]} Nd6 {[%emt 0:00:06]} 38. Bd3 {[%emt 0:00:02]} Nf5 {[%emt 0:00:01]} 39. Bc4 {[%emt 0:00:02]} Nd6 {[%emt 0:00:03]} 40. Bd3 {[%emt 0:00:07]} Nf5 {[%emt 0:00:00]} 41. Bc4 {[%emt 0:00:01]} 1/2-1/2